[Event "Fagernes Open 2021"]
[Site "Fagernes"]
[Date "2021.10.12"]
[Round "3.2"]
[White "Strand, Amund Pihl"]
[Black "Dahl, Torbjorn"]
[Result "0-1"]
[ECO "A26"]
[WhiteElo "1712"]
[BlackElo "1876"]
[Annotator "NA"]
[PlyCount "74"]
[EventDate "2021.10.10"]
[EventCountry "NOR"]
[SourceTitle "playchess.com"]
[Source "ChessBase"]
[SourceQuality "1"]
[TimeControl "40/5400+30:1800+30"]

1. c4 {[%emt 0:00:00]} Nf6 {[%emt 0:00:00]} 2. Nc3 {[%emt 0:00:00]} g6 {[%emt 0:00:00]} 3. g3 {[%emt 0:00:00]} Bg7 {[%emt 0:00:00]} 4. Bg2 {[%emt 0:00:00]} O-O {[%emt 0:00:00]} 5. e4 {[%emt 0:00:00]} e5 {[%emt 0:00:00]} 6. d3 {[%emt 0:00:00]} d6 {[%emt 0:00:00]} 7. Nge2 {[%emt 0:07:18]} Nc6 {[%emt 0:01:03]} 8. O-O {[%emt 0:02:00]} h6 {[%emt 0:04:16]} 9. h3 {[%emt 0:01:24]} Be6 {[%emt 0:15:31]} 10. Be3 {[%emt 0:07:48]} Qd7 {[%emt 0:01:00]} 11. Kh2 {[%emt 0:00:12]} g5 {[%emt 0:04:06]} 12. f4 {[%emt 0:05:25]} gxf4 {[%emt 0:01:36]} 13. gxf4 {[%emt 0:00:08]} exf4 {[%emt 0:03:57]} 14. Nxf4 {[%emt 0:02:45]} Ne5 {[%emt 0:05:59]} 15. Qd2 {[%emt 0:11:19]} c6 {[%emt 0:04:53]} 16. b3 {[%emt 0:07:29]} (16. Rf2 $16) 16... Neg4+ {[%emt 0:10:45]} 17. Kg1 {[%emt 0:11:15]} Nxe3 {[%emt 0:00:51]} 18. Qxe3 {[%emt 0:00:16]} c5 {[%emt 0:03:13]} 19. Nce2 {[%emt 0:02:17]} Nh7 {[%emt 0:06:17]} 20. Rad1 {[%emt 0:02:26]} Ng5 {[%emt 0:00:44]} 21. d4 {[%emt 0:04:22]} cxd4 {[%emt 0:01:50]} 22. Nxd4 {[%emt 0:00:16]} a6 {[%emt 0:01:52]} 23. h4 $18 {[%emt 0:04:45]} Nh7 {[%emt 0:00:36]} 24. Ndxe6 {[%emt 0:06:22]} fxe6 {[%emt 0:00:10]} 25. Bh3 {[%emt 0:00:49]} Rae8 {[%emt 0:03:22]} 26. Qg3 {[%emt 0:11:13]} Qc8 {[%emt 0:04:20]} 27. Kh2 {[%emt 0:02:18]} Rxf4 {[%emt 0:01:19]} 28. Rxf4 {[%emt 0:00:38]} Kh8 {[%emt 0:00:37]} 29. Qf3 {[%emt 0:01:47]} Be5 {[%emt 0:00:30]} 30. Kh1 {[%emt 0:00:19]} Bxf4 {[%emt 0:05:55]} 31. Qxf4 {[%emt 0:00:05]} e5 {[%emt 0:01:04]} 32. Qe3 {[%emt 0:05:35]} Qc5 {[%emt 0:14:16]} 33. Qxh6 {[%emt 0:01:22]} Qf2 {[%emt 0:02:11]} 34. Rf1 {[%emt 0:01:03]} Qe2 {[%emt 0:00:37]} 35. Bg2 {[%emt 0:02:55]} Rg8 {[%emt 0:01:15]} 36. Rg1 {[%emt 0:00:07]} Rg4 {[%emt 0:01:26]} 37. Kh2 {[%emt 0:01:57]} Qf2 {[%emt 0:00:25]} 0-1

[Event "Fagernes Open 2021"]
[Site "Fagernes"]
[Date "2021.10.12"]
[Round "3.3"]
[White "Edvardsen, Ragnar"]
[Black "Kreken, Eivind Grunt"]
[Result "1/2-1/2"]
[ECO "B33"]
[WhiteElo "1865"]
[BlackElo "1838"]
[Annotator "NA"]
[PlyCount "41"]
[EventDate "2021.10.10"]
[EventCountry "NOR"]
[SourceTitle "playchess.com"]
[Source "ChessBase"]
[SourceQuality "1"]
[TimeControl "40/5400+30:1800+30"]

1. e4 {[%emt 0:00:00]} c5 {[%emt 0:00:00]} 2. Nf3 {[%emt 0:00:00]} Nc6 {[%emt 0:00:00]} 3. d4 {[%emt 0:00:00]} cxd4 {[%emt 0:00:00]} 4. Nxd4 {[%emt 0:00:00]} e5 {[%emt 0:00:00]} 5. Nb5 {[%emt 0:00:00]} d6 {[%emt 0:00:00]} 6. a4 {[%emt 0:00:00]} Nf6 {[%emt 0:00:00]} 7. N1c3 {[%emt 0:00:00]} a6 {[%emt 0:00:00]} 8. Na3 {[%emt 0:00:00]} Bg4 {[%emt 0:00:00]} 9. Be2 {[%emt 0:01:13]} Bxe2 {[%emt 0:08:45]} 10. Qxe2 {[%emt 0:00:25]} d5 {[%emt 0:06:07]} 11. exd5 {[%emt 0:03:07]} Nxd5 {[%emt 0:00:56]} 12. Nxd5 {[%emt 0:00:53]} Qxd5 {[%emt 0:00:10]} 13. O-O {[%emt 0:00:31]} Bc5 {[%emt 0:04:29]} 14. Be3 {[%emt 0:01:55]} Bxe3 {[%emt 0:03:44]} 15. Qxe3 {[%emt 0:00:37]} O-O {[%emt 0:03:33]} 16. Rfd1 {[%emt 0:11:54]} Qe6 $11 {[%emt 0:00:57]} 17. Qe4 {[%emt 0:14:18]} Rad8 {[%emt 0:02:40]} 18. Qc4 {[%emt 0:01:33]} Qe7 {[%emt 0:00:54]} 19. c3 {[%emt 0:02:55]} Rxd1+ {[%emt 0:08:46]} 20. Rxd1 {[%emt 0:00:09]} Rd8 {[%emt 0:00:21]} 21. Qe2 {[%emt 0:03:03]} 1/2-1/2

[Event "Fagernes Open 2021"]
[Site "Fagernes"]
[Date "2021.10.12"]
[Round "3.4"]
[White "Krivenko, Dion"]
[Black "Galinsky, Misha"]
[Result "1-0"]
[ECO "C64"]
[WhiteElo "2045"]
[BlackElo "1756"]
[Annotator "ChessBase"]
[PlyCount "65"]
[EventDate "2021.10.10"]
[EventCountry "NOR"]
[SourceTitle "playchess.com"]
[Source "ChessBase"]
[SourceQuality "1"]
[TimeControl "40/5400+30:1800+30"]

1. e4 {[%emt 0:00:00]} e5 {[%emt 0:00:00]} 2. Nf3 {[%emt 0:00:00]} Nc6 {[%emt 0:00:00]} 3. Nc3 {[%emt 0:00:00]} Bc5 {[%emt 0:00:00]} 4. Bb5 {[%emt 0:00:00]} d6 {[%emt 0:00:00]} 5. O-O {[%emt 0:00:00]} Bg4 {[%emt 0:00:00]} 6. h3 {[%emt 0:00:00]} Bh5 {[%emt 0:00:00]} 7. Na4 {[%emt 0:00:00]} Bb6 {[%emt 0:00:00]} 8. c3 {[%emt 0:00:00]} Nf6 {[%emt 0:00:00]} 9. d4 {[%emt 0:05:13]} exd4 {[%emt 0:09:53]} 10. cxd4 {[%emt 0:05:07]} Bxf3 {[%emt 0:02:22]} 11. gxf3 {[%emt 0:01:56]} O-O {[%emt 0:00:16]} 12. Nxb6 {[%emt 0:00:49]} axb6 {[%emt 0:00:06]} 13. Bg5 {[%emt 0:01:30]} Ra5 {[%emt 0:02:04]} 14. a4 {[%emt 0:03:07]} h6 {[%emt 0:01:50]} 15. Bh4 {[%emt 0:02:07]} Qc8 {[%emt 0:05:46]} 16. Kh2 {[%emt 0:03:21]} Nh5 {[%emt 0:01:27]} 17. Qd2 {[%emt 0:09:28]} f5 {[%emt 0:02:08]} 18. Rg1 {[%emt 0:09:26]} f4 {[%emt 0:08:48]} 19. Rg6 {[%emt 0:01:55]} Kh8 {[%emt 0:02:50]} 20. Rag1 {[%emt 0:02:18]} Na7 {[%emt 0:01:13]} 21. b4 {[%emt 0:01:37]} Rxb5 {[%emt 0:02:05]} 22. axb5 {[%emt 0:00:14]} Qe8 {[%emt 0:02:50]} 23. Qa2 {[%emt 0:01:52]} Nxb5 {[%emt 0:00:52]} 24. Qd5 {[%emt 0:00:18]} Ng3 {[%emt 0:04:08]} 25. Re6 {[%emt 0:09:28]} Nxd4 {[%emt 0:06:36]} 26. Rxh6+ {[%emt 0:00:43]} gxh6 {[%emt 0:00:08]} 27. Qxd4+ {[%emt 0:00:03]} Kh7 {[%emt 0:00:26]} 28. fxg3 {[%emt 0:00:45]} Qh5 {[%emt 0:02:04]} 29. gxf4 {[%emt 0:02:44]} Rf7 {[%emt 0:01:18]} 30. Qf2 {[%emt 0:00:17]} Rxf4 {[%emt 0:02:15]} 31. Qc2 {[%emt 0:09:36]} Qf7 {[%emt 0:16:38]} 32. e5+ {[%emt 0:00:57]} Rf5 {[%emt 0:00:13]} 33. Bf6 {[%emt 0:00:34]} 1-0

[Event "Fagernes Open 2021"]
[Site "Fagernes"]
[Date "2021.10.12"]
[Round "3.5"]
[White "Lystad, Maximilian L"]
[Black "Dulman, Egmond-Gabriel"]
[Result "1/2-1/2"]
[ECO "A13"]
[WhiteElo "1767"]
[BlackElo "2065"]
[Annotator "ChessBase"]
[PlyCount "115"]
[EventDate "2021.10.10"]
[EventCountry "NOR"]
[SourceTitle "playchess.com"]
[Source "ChessBase"]
[SourceQuality "1"]
[TimeControl "40/5400+30:1800+30"]

1. c4 {[%emt 0:00:00]} e6 {[%emt 0:00:00]} 2. g3 {[%emt 0:00:00]} d5 {[%emt 0:00:00]} 3. Bg2 {[%emt 0:00:00]} Nf6 {[%emt 0:00:00]} 4. Nf3 {[%emt 0:00:00]} c6 {[%emt 0:00:00]} 5. O-O {[%emt 0:01:44]} Bd6 {[%emt 0:00:00]} 6. d3 {[%emt 0:01:07]} O-O {[%emt 0:00:00]} 7. Nc3 {[%emt 0:00:56]} Nbd7 {[%emt 0:00:10]} 8. e4 {[%emt 0:05:13]} dxe4 {[%emt 0:02:32]} 9. dxe4 {[%emt 0:01:14]} Ne5 {[%emt 0:00:17]} 10. Nxe5 {[%emt 0:04:50]} Bxe5 {[%emt 0:00:07]} 11. Be3 {[%emt 0:00:17]} Qa5 {[%emt 0:01:57]} 12. Bd2 {[%emt 0:05:20]} Qc5 {[%emt 0:03:11]} 13. Qe2 {[%emt 0:00:43]} Bd4 {[%emt 0:01:09]} 14. Na4 {[%emt 0:05:27]} Qe7 {[%emt 0:02:36]} 15. e5 {[%emt 0:03:25]} Nd7 {[%emt 0:00:56]} 16. Bc3 {[%emt 0:00:38]} Bxc3 {[%emt 0:02:29]} 17. Nxc3 {[%emt 0:00:08]} Qc5 {[%emt 0:00:28]} 18. Rfe1 {[%emt 0:01:27]} Rb8 {[%emt 0:00:54]} 19. b3 {[%emt 0:01:46]} b5 {[%emt 0:01:10]} 20. Rac1 {[%emt 0:02:06]} Ba6 {[%emt 0:06:29]} 21. cxb5 {[%emt 0:06:54]} cxb5 {[%emt 0:00:21]} 22. Nd5 {[%emt 0:00:24]} Qa3 {[%emt 0:00:44]} 23. Nc7 {[%emt 0:01:09]} Rfc8 {[%emt 0:03:09]} 24. Rc6 {[%emt 0:19:43]} Rb6 {[%emt 0:23:32]} 25. Nxb5 {[%emt 0:06:46]} Rbxc6 {[%emt 0:00:48]} 26. Nxa3 {[%emt 0:00:54]} Bxe2 {[%emt 0:00:10]} 27. Bxc6 {[%emt 0:00:06]} Rxc6 {[%emt 0:00:10]} 28. Rxe2 {[%emt 0:00:11]} g5 {[%emt 0:01:10]} 29. f4 {[%emt 0:02:47]} gxf4 {[%emt 0:00:56]} 30. gxf4 {[%emt 0:00:07]} Nb6 {[%emt 0:02:42]} 31. Nb5 {[%emt 0:05:04]} a5 {[%emt 0:00:39]} 32. Nd6 {[%emt 0:04:46]} Nd5 {[%emt 0:00:51]} 33. Rf2 {[%emt 0:02:16]} a4 {[%emt 0:01:39]} 34. bxa4 {[%emt 0:07:51]} Ra6 {[%emt 0:00:15]} 35. Rg2+ {[%emt 0:01:18]} Kf8 {[%emt 0:00:15]} 36. Rb2 {[%emt 0:00:07]} Rxa4 {[%emt 0:01:58]} 37. Rb8+ {[%emt 0:00:45]} Kg7 {[%emt 0:00:58]} 38. Rb7 {[%emt 0:00:11]} Rxf4 {[%emt 0:00:37]} 39. Ra7 {[%emt 0:00:40]} h5 {[%emt 0:07:23]} 40. a4 {[%emt 0:00:47]} Ne3 {[%emt 0:08:09]} 41. h3 {[%emt 0:32:31]} h4 {[%emt 0:31:44]} 42. a5 {[%emt 0:02:13]} Nc4 {[%emt 0:11:41]} 43. a6 {[%emt 0:05:13]} Nxe5 {[%emt 0:02:51]} 44. Rc7 {[%emt 0:00:12]} Ra4 {[%emt 0:03:15]} 45. a7 {[%emt 0:00:16]} Nc6 {[%emt 0:04:28]} 46. Rxc6 {[%emt 0:00:23]} Rxa7 {[%emt 0:00:04]} 47. Rc4 {[%emt 0:01:30]} f5 {[%emt 0:00:50]} 48. Rxh4 {[%emt 0:00:32]} Kg6 {[%emt 0:00:16]} 49. Nc4 {[%emt 0:02:09]} Kg5 {[%emt 0:00:17]} 50. Rd4 {[%emt 0:00:09]} Ra4 {[%emt 0:02:09]} 51. Kg2 {[%emt 0:00:37]} Kh5 {[%emt 0:02:45]} 52. Kg3 {[%emt 0:00:35]} e5 {[%emt 0:00:30]} 53. Rh4+ {[%emt 0:00:58]} Kg5 {[%emt 0:00:16]} 54. Nxe5 {[%emt 0:00:00]} Ra3+ {[%emt 0:00:00]} 55. Nf3+ {[%emt 0:00:00]} Rxf3+ {[%emt 0:00:00]} 56. Kxf3 {[%emt 0:00:00]} Kxh4 {[%emt 0:00:00]} 57. Kf4 {[%emt 0:00:00]} Kxh3 {[%emt 0:00:00]} 58. Kxf5 {[%emt 0:00:00]} 1/2-1/2

[Event "Fagernes Open 2021"]
[Site "Fagernes"]
[Date "2021.10.12"]
[Round "3.6"]
[White "Kittilsen, Sigurd"]
[Black "Cross, Jamie"]
[Result "1-0"]
[ECO "C45"]
[WhiteElo "1881"]
[BlackElo "1761"]
[Annotator "NA"]
[PlyCount "121"]
[EventDate "2021.10.10"]
[EventCountry "NOR"]
[SourceTitle "playchess.com"]
[Source "ChessBase"]
[SourceQuality "1"]
[TimeControl "40/5400+30:1800+30"]

1. e4 {[%emt 0:00:00]} e5 {[%emt 0:00:00]} 2. Nf3 {[%emt 0:00:00]} Nc6 {[%emt 0:00:00]} 3. d4 {[%emt 0:00:00]} exd4 {[%emt 0:00:00]} 4. Nxd4 {[%emt 0:00:00]} Bc5 {[%emt 0:00:00]} 5. Nxc6 {[%emt 0:00:00]} Qf6 {[%emt 0:00:00]} 6. Qf3 {[%emt 0:00:00]} dxc6 {[%emt 0:00:00]} 7. Nc3 {[%emt 0:00:00]} Qxf3 {[%emt 0:00:00]} 8. gxf3 {[%emt 0:00:00]} Nf6 {[%emt 0:00:00]} 9. Be3 {[%emt 0:00:00]} Bb4 {[%emt 0:00:00]} 10. Bd4 {[%emt 0:00:00]} c5 {[%emt 0:00:00] [#]} 11. Be5 $1 {[%emt 0:01:14]} c6 {[%emt 0:18:36]} 12. Rg1 {[%emt 0:07:02]} Nd7 {[%emt 0:05:33]} 13. Bxg7 {[%emt 0:08:09]} Rg8 {[%emt 0:00:09]} 14. Rg3 {[%emt 0:00:55]} Nf8 {[%emt 0:02:07]} 15. O-O-O {[%emt 0:07:14]} Be6 {[%emt 0:00:52]} 16. f4 {[%emt 0:07:57]} f5 {[%emt 0:02:10]} 17. exf5 {[%emt 0:20:06]} Bxf5 {[%emt 0:07:39]} 18. Bc4 {[%emt 0:03:12]} Be6 {[%emt 0:00:55]} 19. Bxe6 {[%emt 0:14:15]} ({Weaker is} 19. Re1 Kf7 $16) 19... Nxe6 {[%emt 0:00:21]} 20. Re3 {[%emt 0:04:37]} Rxg7 {[%emt 0:02:11]} 21. f5 {[%emt 0:01:36]} Bxc3 {[%emt 0:01:18]} 22. bxc3 {[%emt 0:00:18]} Rf7 {[%emt 0:04:37]} 23. f3 {[%emt 0:04:44]} Rxf5 {[%emt 0:01:23]} 24. Rxe6+ {[%emt 0:00:32]} Kf7 {[%emt 0:00:32]} 25. Rh6 {[%emt 0:03:19]} Rxf3 {[%emt 0:09:36]} 26. Rd7+ {[%emt 0:00:24]} Kg8 {[%emt 0:03:18]} 27. Rxb7 {[%emt 0:07:30]} Rxc3 {[%emt 0:04:01]} 28. Rbxh7 {[%emt 0:00:58]} Rf8 {[%emt 0:00:33]} 29. Rh8+ {[%emt 0:00:27]} Kg7 {[%emt 0:00:06]} 30. R8h7+ {[%emt 0:01:48]} Kg8 {[%emt 0:00:08]} 31. Rh8+ {[%emt 0:00:12]} Kg7 {[%emt 0:00:04]} 32. R6h7+ {[%emt 0:00:37]} Kg6 {[%emt 0:00:09]} 33. Rxf8 {[%emt 0:00:08]} Kxh7 {[%emt 0:00:07]} 34. Rf7+ {[%emt 0:00:16]} Kg6 {[%emt 0:00:18]} 35. Rxa7 {[%emt 0:00:09]} Kf6 {[%emt 0:00:26]} 36. Ra6 {[%emt 0:00:59]} Ke5 {[%emt 0:00:08]} 37. Rxc6 {[%emt 0:00:15]} Kd5 {[%emt 0:00:08]} 38. Rh6 {[%emt 0:01:02]} Ra3 {[%emt 0:01:20]} 39. Rh5+ {[%emt 0:01:51]} Kc4 {[%emt 0:01:17]} 40. Rh4+ {[%emt 0:00:27]} Kb5 {[%emt 0:00:25]} 41. Kb2 {[%emt 0:30:49]} Rf3 {[%emt 0:31:44]} 42. Rh5 {[%emt 0:00:00]} Kb4 {[%emt 0:00:00]} 43. a3+ {[%emt 0:00:00]} Kc4 {[%emt 0:00:00]} 44. a4 {[%emt 0:00:00]} Kb4 $18 {[%emt 0:00:00]} 45. a5 {[%emt 0:00:00]} c4 {[%emt 0:00:00]} 46. c3+ {[%emt 0:00:00]} Ka4 {[%emt 0:00:00]} 47. a6 {[%emt 0:00:00]} Rf2+ {[%emt 0:00:00]} 48. Kc1 {[%emt 0:00:00]} Rf6 {[%emt 0:00:00]} 49. a7 {[%emt 0:03:42]} Ra6 {[%emt 0:00:00]} 50. Rh7 {[%emt 0:00:13]} Kb3 {[%emt 0:00:00]} 51. h4 {[%emt 0:02:07]} Kxc3 {[%emt 0:00:00]} 52. Kb1 {[%emt 0:00:10]} Rb6+ {[%emt 0:00:00]} 53. Kc1 {[%emt 0:02:32]} Ra6 {[%emt 0:00:00]} 54. Kd1 {[%emt 0:00:41]} Ra1+ {[%emt 0:00:00]} 55. Ke2 {[%emt 0:00:06]} Kc2 {[%emt 0:00:00]} 56. h5 {[%emt 0:01:28]} Ra6 {[%emt 0:00:00]} 57. h6 {[%emt 0:01:02]} Re6+ {[%emt 0:00:00]} 58. Kf3 {[%emt 0:00:08]} Re8 {[%emt 0:00:00]} 59. Rb7 {[%emt 0:00:41]} Ra8 {[%emt 0:00:00]} 60. h7 {[%emt 0:00:31]} c3 {[%emt 0:00:00]} 61. Rb8 {[%emt 0:00:20]} 1-0

[Event "Fagernes Open 2021"]
[Site "Fagernes"]
[Date "2021.10.12"]
[Round "3.7"]
[White "Andersen, Guttorm"]
[Black "Pedersen, Max Moe"]
[Result "1/2-1/2"]
[ECO "D31"]
[WhiteElo "1731"]
[BlackElo "1837"]
[Annotator "NA"]
[PlyCount "86"]
[EventDate "2021.10.10"]
[EventCountry "NOR"]
[SourceTitle "playchess.com"]
[Source "ChessBase"]
[SourceQuality "1"]
[TimeControl "40/5400+30:1800+30"]

1. d4 {[%emt 0:00:00]} d5 {[%emt 0:00:00]} 2. c4 {[%emt 0:00:00]} c6 {[%emt 0:00:00]} 3. Nc3 {[%emt 0:00:00]} Nf6 {[%emt 0:00:00]} 4. e3 {[%emt 0:00:00]} e6 {[%emt 0:00:00]} 5. Bd3 {[%emt 0:00:00]} dxc4 {[%emt 0:00:00]} 6. Bxc4 {[%emt 0:00:00]} b5 {[%emt 0:00:00]} 7. Bd3 {[%emt 0:00:00]} Nbd7 {[%emt 0:00:00]} 8. a3 {[%emt 0:05:38]} Bd6 {[%emt 0:00:00]} 9. Nf3 {[%emt 0:05:50]} (9. Qf3 $5 {[%cal Rf3c6]} Qb6 {[#]} 10. Nxb5 $1 $14) 9... O-O {[%emt 0:00:00]} 10. e4 {[%emt 0:02:09]} e5 {[%emt 0:00:00]} 11. O-O {[%emt 0:02:32]} a6 {[%emt 0:02:22]} 12. Bg5 {[%emt 0:02:38]} exd4 {[%emt 0:26:04]} 13. Nxd4 {[%emt 0:00:58]} Qc7 {[%emt 0:00:15]} 14. h3 {[%emt 0:04:43]} g6 {[%emt 0:03:23]} 15. Rc1 {[%emt 0:02:39]} c5 {[%emt 0:06:57]} 16. Nd5 {[%emt 0:12:26]} Nxd5 {[%emt 0:01:13]} 17. exd5 {[%emt 0:04:26]} Bb7 {[%emt 0:02:53]} 18. Be4 {[%emt 0:08:01]} Bf4 {[%emt 0:05:36]} ({Black should try} 18... Rfe8 $17 19. Re1 c4) 19. Bxf4 {[%emt 0:05:41]} Qxf4 {[%emt 0:00:05]} 20. Qf3 {[%emt 0:00:09]} Qxf3 {[%emt 0:00:35]} 21. Nxf3 {[%emt 0:00:06]} Rfe8 {[%emt 0:01:17]} ({But not} 21... f5 22. Bb1 $17) 22. Nd2 {[%emt 0:01:19]} c4 {[%emt 0:03:37]} 23. b3 {[%emt 0:04:02]} Nf6 {[%emt 0:01:59]} 24. Bf3 {[%emt 0:02:22]} cxb3 {[%emt 0:01:42]} 25. Rc5 {[%emt 0:05:58]} Rac8 {[%emt 0:03:33]} 26. Nxb3 {[%emt 0:00:17]} Rxc5 {[%emt 0:00:42]} 27. Nxc5 {[%emt 0:00:09]} Bxd5 {[%emt 0:00:36]} 28. Bxd5 {[%emt 0:00:54]} Nxd5 {[%emt 0:00:09]} 29. Nxa6 {[%emt 0:02:51]} Ra8 {[%emt 0:00:56]} 30. Rd1 {[%emt 0:00:13]} Nc3 $11 {[%emt 0:05:11]} 31. Rd3 {[%emt 0:06:17]} Ne2+ {[%emt 0:04:43]} 32. Kf1 {[%emt 0:00:13]} Nf4 {[%emt 0:00:09]} 33. Nc7 {[%emt 0:03:48]} Nxd3 {[%emt 0:10:27]} 34. Nxa8 {[%emt 0:00:08]} b4 {[%emt 0:00:16]} 35. axb4 {[%emt 0:00:11]} Nxb4 {[%emt 0:00:05]} 36. Nb6 {[%emt 0:02:45]} f5 {[%emt 0:00:17]} 37. Ke2 {[%emt 0:00:12]} Kf7 {[%emt 0:00:11]} 38. Ke3 {[%emt 0:03:57]} Ke6 {[%emt 0:00:11]} 39. f4 {[%emt 0:00:43]} Nc2+ {[%emt 0:01:08]} 40. Kf2 {[%emt 0:00:37]} Nb4 {[%emt 0:00:43]} 41. Ke3 {[%emt 0:30:35]} Nc2+ {[%emt 0:30:07]} 42. Kf2 {[%emt 0:00:11]} Nb4 {[%emt 0:00:06]} 43. Ke3 {[%emt 0:02:30]} Nc2+ {[%emt 0:00:07]} 1/2-1/2

[Event "Fagernes Open 2021"]
[Site "Fagernes"]
[Date "2021.10.12"]
[Round "3.8"]
[White "Myagmarsuren, Evsuld"]
[Black "Lye, Sigurd"]
[Result "1-0"]
[ECO "B33"]
[WhiteElo "1650"]
[BlackElo "1821"]
[Annotator "NA"]
[PlyCount "83"]
[EventDate "2021.10.10"]
[EventCountry "NOR"]
[SourceTitle "playchess.com"]
[Source "ChessBase"]
[SourceQuality "1"]
[TimeControl "40/5400+30:1800+30"]

1. e4 {[%emt 0:00:00]} c5 {[%emt 0:00:00]} 2. Nf3 {[%emt 0:00:00]} Nc6 {[%emt 0:00:00]} 3. d4 {[%emt 0:00:00]} cxd4 {[%emt 0:00:00]} 4. Nxd4 {[%emt 0:00:00]} Nf6 {[%emt 0:00:00]} 5. Nc3 {[%emt 0:00:00]} e5 {[%emt 0:00:00]} 6. Ndb5 {[%emt 0:00:00]} d6 {[%emt 0:00:00]} 7. Nd5 {[%emt 0:00:00]} Nxd5 {[%emt 0:00:00]} 8. exd5 {[%emt 0:00:00]} Nb8 {[%emt 0:00:00]} 9. c4 {[%emt 0:00:00]} Be7 {[%emt 0:00:00]} 10. Bd3 {[%emt 0:00:00]} O-O {[%emt 0:00:00]} 11. O-O {[%emt 0:00:00]} a6 {[%emt 0:00:00]} 12. Nc3 {[%emt 0:00:00]} f5 {[%emt 0:00:00]} 13. Bd2 {[%emt 0:00:00]} Nd7 {[%emt 0:00:00]} 14. Qe2 {[%emt 0:00:00]} e4 {[%emt 0:00:00]} 15. Bc2 {[%emt 0:02:29]} Ne5 {[%emt 0:00:00]} 16. c5 {[%emt 0:11:50]} Bf6 {[%emt 0:25:57]} 17. cxd6 {[%emt 0:14:18]} Qxd6 {[%emt 0:03:14]} 18. Bf4 {[%emt 0:12:13]} Bd7 {[%emt 0:07:22]} 19. Rae1 {[%emt 0:10:08]} b5 {[%emt 0:02:32]} 20. Nxe4 {[%emt 0:08:52]} fxe4 {[%emt 0:22:25]} 21. Qxe4 {[%emt 0:00:13] Double Attack} Rfe8 {[%emt 0:05:29]} 22. Qxh7+ {[%emt 0:00:46]} Kf8 $18 {[%emt 0:02:49]} 23. Bg6 {[%emt 0:06:52]} Qxd5 {[%emt 0:12:16]} 24. Be4 {[%emt 0:03:23]} Qd4 {[%emt 0:04:28]} 25. Rd1 {[%emt 0:08:10]} Qa7 {[%emt 0:01:17]} 26. Bxa8 {[%emt 0:02:10]} Bg4 {[%emt 0:06:56]} 27. Bd5 {[%emt 0:01:47]} Bxd1 {[%emt 0:00:51]} 28. Bxe5 {[%emt 0:00:36]} Ke7 {[%emt 0:02:59]} 29. Bxf6+ {[%emt 0:01:23]} Kxf6 {[%emt 0:00:12]} 30. Qh4+ {[%emt 0:01:23]} g5 {[%emt 0:00:38]} 31. Qh6+ {[%emt 0:00:34]} Kf5 {[%emt 0:01:07]} 32. Rxd1 {[%emt 0:00:56]} Qe7 {[%emt 0:02:26]} 33. g4+ {[%emt 0:01:42]} Kxg4 {[%emt 0:00:53]} 34. f3+ {[%emt 0:01:34]} Kf4 {[%emt 0:00:55]} 35. Rd4+ {[%emt 0:00:33]} Kf5 {[%emt 0:00:31]} 36. Be4+ {[%emt 0:00:54]} Ke5 {[%emt 0:00:27]} 37. Rd5+ {[%emt 0:00:28]} Kf4 {[%emt 0:00:34]} 38. Rf5+ {[%emt 0:01:37]} Ke3 {[%emt 0:00:10]} 39. Qb6+ {[%emt 0:00:08]} Kd2 {[%emt 0:01:07]} 40. Qd4+ {[%emt 0:00:10]} Ke2 {[%emt 0:00:45]} 41. Qf2+ {[%emt 0:30:15]} Kd1 {[%emt 0:30:11]} 42. Rd5+ {[%emt 0:00:10]} 1-0

[Event "Fagernes Open 2021"]
[Site "Fagernes"]
[Date "2021.10.12"]
[Round "3.9"]
[White "Amundsen, Ask"]
[Black "Rynning, Rune Kleiven"]
[Result "1-0"]
[ECO "B90"]
[WhiteElo "1816"]
[BlackElo "1721"]
[Annotator "NA"]
[PlyCount "59"]
[EventDate "2021.10.10"]
[EventCountry "NOR"]
[SourceTitle "playchess.com"]
[Source "ChessBase"]
[SourceQuality "1"]
[TimeControl "40/5400+30:1800+30"]

1. e4 {[%emt 0:00:05]} c5 {[%emt 0:00:00]} 2. Nf3 {[%emt 0:00:00]} d6 {[%emt 0:00:00]} 3. d4 {[%emt 0:00:00]} cxd4 {[%emt 0:00:00]} 4. Nxd4 {[%emt 0:00:00]} Nf6 {[%emt 0:00:00]} 5. Nc3 {[%emt 0:00:00]} a6 {[%emt 0:00:00]} 6. Be3 {[%emt 0:00:00]} e5 {[%emt 0:00:00]} 7. Nb3 {[%emt 0:00:00]} Be6 {[%emt 0:00:00]} 8. f3 {[%emt 0:00:00]} h5 {[%emt 0:00:00]} 9. Qd2 {[%emt 0:00:00]} Nbd7 {[%emt 0:00:00]} 10. O-O-O {[%emt 0:00:00]} Be7 {[%emt 0:00:00]} 11. Be2 {[%emt 0:00:00]} Rc8 {[%emt 0:03:12]} 12. h4 {[%emt 0:09:55]} Nb6 {[%emt 0:02:02]} 13. Bxb6 {[%emt 0:14:29]} Qxb6 {[%emt 0:00:10]} 14. Rdg1 {[%emt 0:00:49]} O-O {[%emt 0:20:34]} 15. g4 {[%emt 0:04:27]} hxg4 {[%emt 0:00:39]} 16. fxg4 {[%emt 0:00:22]} Rxc3 {[%emt 0:19:31]} 17. Qxc3 {[%emt 0:02:55]} Nxe4 {[%emt 0:00:41]} 18. Qe1 {[%emt 0:11:34]} Qe3+ {[%emt 0:07:42]} 19. Kb1 {[%emt 0:00:41]} Nf2 {[%emt 0:01:23]} 20. Rh2 {[%emt 0:04:30]} Nxg4 {[%emt 0:00:09]} 21. Rhg2 {[%emt 0:00:21]} f5 {[%emt 0:00:27]} 22. Nc1 {[%emt 0:00:50]} (22. Qb4 $15) 22... Bd5 {[%emt 0:05:41]} 23. Rxg4 {[%emt 0:28:21]} (23. Bc4 $15 Qc5 24. Bxd5+ Qxd5 25. h5) 23... fxg4 $17 {[%emt 0:00:42]} 24. Bc4 {[%emt 0:01:21]} Qd4 {[%emt 0:06:44]} 25. Bxd5+ {[%emt 0:04:05]} Qxd5 {[%emt 0:00:03]} 26. Rxg4 {[%emt 0:00:21]} Qf3 {[%emt 0:08:40]} 27. Qg1 {[%emt 0:01:40]} Rf7 {[%emt 0:00:17]} 28. h5 {[%emt 0:00:28]} Qf1 {[%emt 0:04:40]} 29. Rxg7+ {[%emt 0:00:46]} Kh8 {[%emt 0:00:15]} 30. Rg8+ {[%emt 0:00:08]} 1-0